fUSD/lending_fUSD_20250208
["ID","MTS","AMOUNT","RATE_DAILY","PERIOD"]
[352345893,1739050252033,-534.5,0.00010817,2]
[352345894,1739050252041,-287.69,0.00010817,2]
[352345895,1739050252051,-500.0,0.00010817,2]
[352345896,1739050252062,-377.84430415,0.00010817,2]
[352345897,1739050252072,-492.34,0.00010817,2]
[352345898,1739050252081,-870.71,0.00010817,2]
[352345899,1739050252091,-500.0,0.00010817,2]
[352345900,1739050252101,-591.38,0.00010817,2]
[352345901,1739050252111,-500.0,0.00010817,2]
[352345902,1739050252120,-653.43,0.00010817,2]
[352345903,1739050252130,-500.0,0.00010817,2]
[352345904,1739050252139,-777.0,0.00010817,2]
[352345905,1739050252149,-581.07,0.00010817,2]
[352345906,1739050252160,-1000.0,0.00010817,2]
[352345907,1739050252170,-643.6,0.00010817,2]
[352345908,1739050252179,-580.36,0.00010817,2]
[352345909,1739050252189,-506.13,0.00010817,2]
[352345910,1739050252199,-717.05,0.00010817,2]
[352345911,1739050252209,-717.24,0.00010817,2]
[352345912,1739050252219,-512.34,0.00010817,2]
[352345913,1739050252229,-500.0,0.00010817,2]
[352345914,1739050252240,-500.0,0.00010817,2]
[352345915,1739050252250,-252.01,0.00010817,2]
[352345916,1739050252260,-483.74,0.00010817,2]
[352345917,1739050252270,-500.0,0.00010817,2]
[352345918,1739050252280,-500.0,0.00010817,2]
[352345919,1739050252291,-500.0,0.00010818,2]
[352345920,1739050252300,-500.0,0.00010818,2]
[352345921,1739050252310,-500.0,0.00010818,2]
[352345922,1739050252319,-500.0,0.00010818,2]
[352345923,1739050252329,-500.0,0.00010818,2]
[352345924,1739050252338,-500.0,0.00010818,2]
[352345925,1739050252348,-500.0,0.00010818,2]
[352345926,1739050252357,-500.0,0.00010818,2]
[352345927,1739050252367,-534.09,0.00010818,2]
[352345928,1739050252377,-500.0,0.00010818,2]
[352345929,1739050252387,-500.0,0.00010818,2]
[352345930,1739050252396,-500.0,0.00010818,2]
[352345931,1739050252415,-500.0,0.00010818,2]
[352345932,1739050252425,-500.0,0.00010818,2]
[352345933,1739050252435,-500.0,0.00010818,2]
[352345934,1739050252444,-500.0,0.00010818,2]
[352345935,1739050252454,-307.71,0.00010818,2]
[352345936,1739050252464,-711.33,0.00010818,2]
[352345937,1739050252474,-500.0,0.00010818,2]
[352345938,1739050252484,-500.0,0.00010818,2]
[352345939,1739050252495,-579.23,0.00010818,2]
[352345940,1739050252504,-500.0,0.00010818,2]
[352345941,1739050252514,-500.0,0.00010818,2]
[352345942,1739050252523,-408.55271838,0.00010818,2]
[352345943,1739050252532,-500.0,0.00010818,2]
[352345944,1739050252542,-500.0,0.00010818,2]
[352345945,1739050252551,-500.0,0.00010818,2]
[352345946,1739050252560,-500.0,0.00010818,2]
[352345947,1739050252569,-500.0,0.00010818,2]
[352345948,1739050252579,-573.64,0.00010818,2]
[352345949,1739050252588,-392.32,0.00010818,2]
[352345950,1739050252597,-500.0,0.00010818,2]
[352345951,1739050252607,-500.0,0.00010818,2]
[352345952,1739050252618,-500.0,0.00010818,2]
[352345953,1739050252629,-537.55,0.00010818,2]
[352345954,1739050252639,-530.58,0.00010818,2]
[352345955,1739050252649,-500.0,0.00010818,2]
[352345956,1739050252660,-500.0,0.00010818,2]
[352345957,1739050252670,-500.0,0.00010818,2]
[352345958,1739050252679,-594.37,0.00010818,2]
[352345959,1739050252689,-500.0,0.00010818,2]
[352345960,1739050252699,-500.0,0.00010818,2]
[352345961,1739050252708,-500.0,0.00010818,2]
[352345962,1739050252717,-500.0,0.00010818,2]
[352345963,1739050252728,-817.25,0.00010818,2]
[352345964,1739050252739,-500.0,0.00010818,2]
[352345965,1739050252748,-500.0,0.00010818,2]
[352345966,1739050252758,-745.14,0.00010818,2]
[352345967,1739050252767,-500.0,0.00010818,2]
[352345968,1739050252778,-759.93,0.00010818,2]
[352345969,1739050252787,-500.0,0.00010818,2]
[352345970,1739050252797,-500.0,0.00010818,2]
[352345971,1739050252807,-703.92,0.00010818,2]
[352345972,1739050252816,-613.55,0.00010818,2]
[352345973,1739050252826,-500.0,0.00010818,2]
[352345974,1739050252835,-500.0,0.00010818,2]
[352345975,1739050252845,-500.0,0.00010818,2]
[352345976,1739050252855,-1367.27,0.00010818,2]
[352345977,1739050252865,-500.0,0.00010818,2]
[352345978,1739050252874,-816.57,0.00010818,2]
[352345979,1739050252884,-500.0,0.00010818,2]
[352345980,1739050252894,-500.0,0.00010818,2]
[352345981,1739050252903,-1048.33,0.00010818,2]
[352345982,1739050252914,-500.0,0.00010818,2]
[352345983,1739050252924,-229.86,0.00010818,2]
[352345984,1739050252933,-500.0,0.00010818,2]
[352345985,1739050252944,-650.44,0.00010818,2]
[352345986,1739050252954,-1186.72,0.00010818,2]
[352345987,1739050252965,-506.78,0.00010818,2]
[352345988,1739050252975,-865.61,0.00010818,2]
[352345989,1739050252986,-500.0,0.00010818,2]
[352345990,1739050252996,-546.88,0.00010818,2]
[352345991,1739050253006,-544.09,0.00010818,2]
[352345992,1739050253016,-869.33,0.00010818,2]
[352345993,1739050253026,-652.37,0.00010818,2]
[352345994,1739050253035,-1567.99,0.00010818,2]
[352345995,1739050253045,-688.47,0.00010818,2]
[352345996,1739050253056,-593.09,0.00010818,2]
[352345997,1739050253066,-685.28,0.00010818,2]
[352345998,1739050253075,-516.62,0.00010818,2]
[352345999,1739050253085,-647.24,0.00010818,2]
[352346000,1739050253095,-500.0,0.00010818,2]
[352346001,1739050253105,-500.0,0.00010818,2]
[352346002,1739050253115,-500.0,0.00010818,2]
[352346003,1739050253124,-546.17,0.00010818,2]
[352346004,1739050253135,-500.0,0.00010818,2]
[352346005,1739050253144,-205.04,0.00010818,2]
[352346006,1739050253154,-500.0,0.00010818,2]
[352346007,1739050253164,-662.1,0.00010818,2]
[352346008,1739050253174,-1136.03,0.00010818,2]
[352346009,1739050253184,-500.0,0.00010818,2]
[352346010,1739050253194,-954.86,0.00010818,2]
[352346011,1739050253203,-584.73,0.00010818,2]
[352346012,1739050253213,-500.0,0.00010818,2]
[352346013,1739050253222,-797.04,0.00010818,2]
[352346014,1739050253232,-890.35,0.00010818,2]
[352346015,1739050253242,-500.0,0.00010818,2]
[352346016,1739050253251,-835.73,0.00010818,2]
[352346017,1739050253262,-500.0,0.00010818,2]
[352346018,1739050253272,-841.66,0.00010818,2]
[352346019,1739050253281,-540.67,0.00010818,2]
[352346020,1739050253291,-1633.27,0.00010818,2]
[352346021,1739050253300,-516.17,0.00010818,2]
[352346022,1739050253309,-637.46,0.00010818,2]
[352346023,1739050253319,-450.448362,0.00010821,2]
[352346024,1739050253329,-430.5103,0.00010821,2]
[352346025,1739050253338,-540.53,0.00010821,2]
[352346026,1739050253347,-500.0,0.00010821,2]
[352346027,1739050253357,-725.14,0.00010821,2]
[352346028,1739050253366,-500.0,0.00010821,2]
[352346029,1739050253375,-743.11,0.00010821,2]
[352346030,1739050253384,-502.24,0.00010821,2]
[352346031,1739050253394,-661.2,0.00010821,2]
[352346032,1739050253403,-500.0,0.00010821,2]
[352346033,1739050253413,-500.0,0.00010821,2]
[352346034,1739050253423,-992.69,0.00010821,2]
[352346035,1739050253433,-538.64,0.00010821,2]
[352346036,1739050253442,-1056.48,0.00010821,2]
[352346037,1739050253452,-500.0,0.00010821,2]
[352346038,1739050253462,-1045.26,0.00010821,2]
[352346039,1739050253471,-500.0,0.00010821,2]
[352346040,1739050253481,-962.11,0.00010821,2]
[352346041,1739050253491,-903.48,0.00010821,2]
[352346042,1739050253500,-1460.39,0.00010821,2]
[352346043,1739050253510,-603.3,0.00010821,2]
[352346044,1739050253519,-899.53,0.00010821,2]
[352346045,1739050253530,-808.06,0.00010821,2]
[352346046,1739050253540,-528.41,0.00010821,2]
[352346047,1739050253549,-500.0,0.00010821,2]
[352346048,1739050253559,-504.57,0.00010821,2]
[352346049,1739050253568,-951.36,0.00010821,2]
[352346050,1739050253578,-1150.15,0.00010821,2]
[352346051,1739050253588,-819.97,0.00010821,2]
[352346052,1739050253597,-500.0,0.00010821,2]
[352346053,1739050253607,-500.0,0.00010821,2]
[352346054,1739050253616,-1432.14,0.00010821,2]
[352346055,1739050253625,-957.52,0.00010821,2]
[352346056,1739050253634,-500.0,0.00010821,2]
[352346057,1739050253645,-508.14,0.00010821,2]
[352346058,1739050253655,-549.53,0.00010821,2]
[352346059,1739050253664,-749.69,0.00010821,2]
[352346060,1739050253674,-500.0,0.00010821,2]
[352346061,1739050253683,-500.0,0.00010821,2]
[352346062,1739050253693,-682.67,0.00010821,2]
[352346063,1739050253703,-607.84,0.00010821,2]
[352346064,1739050253712,-500.0,0.00010821,2]
[352346065,1739050253723,-200.0,0.00010825,2]
[352346066,1739050253736,-2311.38854484,0.00010825,2]
[352346067,1739050253746,-9314.56186162,0.00010826,2]
[352346068,1739050253756,-224.81739149,0.00010826,2]
[352346069,1739050253767,-9314.56186162,0.00010827,2]
[352346070,1739050253778,-113786.32841928,0.00010827,2]
[352346071,1739050253789,-1224.774,0.00010833,2]
[352346072,1739050253799,-150.0,0.00010833,2]
[352346073,1739050253809,-151.0,0.00010833,2]
[352346074,1739050253819,-638.0,0.00010833,2]
[352346075,1739050253829,-113786.32841928,0.00010834,2]
[352346076,1739050253839,-3022.25708336,0.00010835,2]
[352346077,1739050253848,-9864.55969786,0.00010837,2]
[352346078,1739050253858,-200.0,0.00010839,2]
[352346079,1739050253868,-113786.32841928,0.00010841,2]
[352346080,1739050253877,-4187.64727165,0.00010842,2]
[352346081,1739050253887,-4187.64727165,0.00010845,2]
[352346082,1739050253897,-21615.20647629,0.00010848,2]
[352346083,1739050253907,-9864.55969786,0.00010848,2]
[352346084,1739050253916,-2311.38854484,0.00010851,2]
[352346085,1739050253926,-9864.55969786,0.00010852,2]
[352346086,1739050253936,-21615.20647629,0.00010852,2]
[352346087,1739050253946,-200.0,0.00010853,2]
[352346088,1739050253955,-113786.32841928,0.00010853,2]
[352346089,1739050253965,-5502.08462253,0.00010853,2]
[352346090,1739050253975,-200.0,0.00010854,2]
[352346091,1739050253984,-5502.08462253,0.00010854,2]
[352346092,1739050253994,-9715.91423758,0.00010854,2]
[352346093,1739050254004,-200.0,0.00010856,2]
[352346094,1739050254014,-261.30506239,0.00010857,2]
[352346095,1739050254024,-4187.64727165,0.00010857,2]
[352346096,1739050254034,-5502.08462253,0.00010859,2]
[352346097,1739050254044,-224.81739149,0.0001086,2]
[352346098,1739050254054,-261.30506239,0.00010863,2]
[352346099,1739050254064,-261.30506239,0.00010864,2]
[352346100,1739050254074,-224.81739149,0.00010866,2]
[352346101,1739050254083,-9314.56186162,0.00010871,2]
[352346102,1739050254094,-200.0,0.00010874,2]
[352346103,1739050254104,-4187.64727165,0.00010874,2]
[352346104,1739050254114,-9715.91423758,0.00010876,2]
[352346105,1739050254124,-21615.20647629,0.00010877,2]
[352346106,1739050254134,-9864.55969786,0.00010878,2]
[352346107,1739050254144,-9314.56186162,0.00010881,2]
[352346108,1739050254153,-5502.08462253,0.00010881,2]
[352346109,1739050254164,-323.19618964,0.00010882,2]
[352346110,1739050254175,-2311.38854484,0.00010884,2]
[352346111,1739050254185,-200.0,0.00010885,2]
[352346112,1739050254194,-2311.38854484,0.00010886,2]
[352346113,1739050254204,-224.81739149,0.00010886,2]
[352346114,1739050254214,-261.30506239,0.00010888,2]
[352346115,1739050254224,-21615.20647629,0.00010891,2]
[352346116,1739050254234,-9715.91423758,0.00010893,2]
[352346117,1739050254245,-9715.91423758,0.00010894,2]
[352346118,1739050254254,-366.0,0.000109,2]
[352346119,1739050254264,-746.0,0.000109,2]
[352346120,1739050254274,-588.88200301,0.000109,2]
[352346121,1739050254284,-588.88200301,0.000109,2]
[352346122,1739050254295,-588.88200301,0.000109,2]
[352346123,1739050254305,-231.0,0.000109,2]
[352346124,1739050254315,-588.88200301,0.000109,2]
[352346125,1739050254325,-345.81567487,0.000109,2]
[352346126,1739050254335,-978.6,0.000109,2]
[352346127,1739050254345,-205.34,0.00010903,2]
[352346128,1739050254354,-424.06325276,0.00010905,2]
[352346129,1739050254364,-222.0,0.0001094,2]
[352346130,1739050254373,-1258.0,0.00010947,2]
[352346131,1739050254383,-500.0,0.00010953,2]
[352346132,1739050254394,-593.57,0.00010953,2]
[352346133,1739050254405,-502.45,0.00010953,2]
[352346134,1739050254414,-786.56,0.00010953,2]
[352346135,1739050254425,-500.0,0.00010953,2]
[352346136,1739050254435,-601.47,0.00010953,2]
[352346137,1739050254445,-589.28,0.00010953,2]
[352346138,1739050254456,-500.0,0.00010953,2]
[352346139,1739050254468,-611.8,0.00010953,2]
[352346140,1739050254479,-2286.35,0.00010953,2]
[352346141,1739050254490,-500.0,0.00010953,2]
[352346142,1739050254500,-694.74,0.00010953,2]
[352346143,1739050254512,-651.21,0.00010953,2]
[352346144,1739050254522,-648.78,0.00010953,2]
[352346145,1739050254532,-500.0,0.00010954,2]
[352346146,1739050254543,-500.0,0.00010954,2]
[352346147,1739050254553,-500.0,0.00010954,2]
[352346148,1739050254563,-267.13,0.00010954,2]
[352346149,1739050254572,-500.0,0.00010954,2]
[352346150,1739050254582,-229.4,0.00010954,2]
[352346151,1739050254592,-322.77,0.00010954,2]
[352346152,1739050254602,-500.0,0.00010954,2]
[352346153,1739050254807,-500.0,0.00010954,2]
[352346154,1739050254817,-500.0,0.00010954,2]
[352346155,1739050254828,-222.33,0.00010954,2]
[352346156,1739050254840,-634.68,0.00010954,2]
[352346157,1739050254850,-644.14,0.00010954,2]
[352346158,1739050254862,-516.3,0.00010954,2]
[352346159,1739050254872,-605.9,0.00010954,2]
[352346160,1739050254883,-500.0,0.00010954,2]
[352346161,1739050254893,-500.0,0.00010954,2]
[352346162,1739050254902,-500.0,0.00010954,2]
[352346163,1739050254912,-192.64,0.00010954,2]
[352346164,1739050254922,-343.12,0.00010954,2]
[352346165,1739050254932,-500.0,0.00010954,2]
[352346166,1739050254942,-500.0,0.00010954,2]
[352346167,1739050254952,-500.0,0.00010954,2]
[352346168,1739050254962,-625.54,0.00010954,2]
[352346169,1739050254971,-500.0,0.00010954,2]
[352346170,1739050254982,-250.37,0.00010954,2]
[352346171,1739050254992,-500.0,0.00010954,2]
[352346172,1739050255002,-556.44,0.00010954,2]
[352346173,1739050255011,-500.0,0.00010954,2]
[352346174,1739050255021,-552.6,0.00010954,2]
[352346175,1739050255032,-500.0,0.00010954,2]
[352346176,1739050255041,-500.0,0.00010954,2]
[352346177,1739050255050,-500.35,0.00010954,2]
[352346178,1739050255060,-500.0,0.00010954,2]
[352346179,1739050255070,-587.07,0.00010954,2]
[352346180,1739050255080,-500.0,0.00010954,2]
[352346181,1739050255089,-173.03046225,0.00010954,2]
[352346182,1739050255098,-179.28884629,0.00010954,2]
[352346183,1739050255108,-500.0,0.00010954,2]
[352346184,1739050255118,-238.93,0.00010954,2]
[352346185,1739050255128,-529.79,0.00010954,2]
[352346186,1739050255137,-542.29,0.00010954,2]
[352346187,1739050255147,-500.0,0.00010954,2]
[352346188,1739050255156,-500.0,0.00010954,2]
[352346189,1739050255165,-500.0,0.00010954,2]
[352346190,1739050255175,-500.0,0.00010954,2]
[352346191,1739050255185,-558.09,0.00010954,2]
[352346192,1739050255195,-574.0,0.00010954,2]
[352346193,1739050255205,-688.65,0.00010954,2]
[352346194,1739050255215,-948.22,0.00010954,2]
[352346195,1739050255226,-500.0,0.00010954,2]
[352346196,1739050255235,-549.72,0.00010954,2]
[352346197,1739050255245,-204.06,0.00010954,2]
[352346198,1739050255255,-534.5,0.00010954,2]
[352346199,1739050255265,-500.0,0.00010954,2]
[352346200,1739050255275,-870.71,0.00010954,2]
[352346201,1739050255285,-175.34,0.00010954,2]
[352346202,1739050255295,-591.38,0.00010954,2]
[352346203,1739050255305,-500.0,0.00010954,2]
[352346204,1739050255315,-653.43,0.00010954,2]
[352346205,1739050255324,-500.0,0.00010954,2]
[352346206,1739050255334,-777.0,0.00010954,2]
[352346207,1739050255344,-581.07,0.00010954,2]
[352346208,1739050255354,-500.0,0.00010954,2]
[352346209,1739050255364,-1000.0,0.00010954,2]
[352346210,1739050255374,-643.6,0.00010954,2]
[352346211,1739050255383,-580.36,0.00010954,2]
[352346212,1739050255393,-506.13,0.00010954,2]
[352346213,1739050255402,-717.05,0.00010954,2]
[352346214,1739050255411,-717.24,0.00010954,2]
[352346215,1739050255421,-512.34,0.00010954,2]
[352346216,1739050255431,-500.0,0.00010954,2]
[352346217,1739050255441,-500.0,0.00010954,2]
[352346218,1739050255451,-500.0,0.00010954,2]
[352346219,1739050255460,-500.0,0.00010954,2]
[352346220,1739050255470,-500.0,0.00010955,2]
[352346221,1739050255480,-500.0,0.00010955,2]
[352346222,1739050255491,-500.0,0.00010955,2]
[352346223,1739050255502,-500.0,0.00010955,2]
[352346224,1739050255512,-500.0,0.00010955,2]
[352346225,1739050255522,-500.0,0.00010955,2]
[352346226,1739050255532,-500.0,0.00010955,2]
[352346227,1739050255542,-534.09,0.00010955,2]
[352346228,1739050255551,-500.0,0.00010955,2]
[352346229,1739050255560,-500.0,0.00010955,2]
[352346230,1739050255570,-500.0,0.00010955,2]
[352346231,1739050255580,-500.0,0.00010955,2]
[352346232,1739050255590,-500.0,0.00010955,2]
[352346233,1739050255599,-318.65311149,0.00010955,2]
[352346234,1739050255609,-711.33,0.00010955,2]
[352346235,1739050255619,-500.0,0.00010955,2]
[352346236,1739050255628,-500.0,0.00010955,2]
[352346237,1739050255638,-579.23,0.00010955,2]
[352346238,1739050255647,-500.0,0.00010955,2]
[352346239,1739050255657,-500.0,0.00010955,2]
[352346240,1739050255666,-500.0,0.00010955,2]
[352346241,1739050255675,-500.0,0.00010955,2]
[352346242,1739050255685,-500.0,0.00010955,2]
[352346243,1739050255694,-500.0,0.00010955,2]
[352346244,1739050255704,-500.0,0.00010955,2]
[352346245,1739050255715,-573.64,0.00010955,2]
[352346246,1739050255725,-500.0,0.00010955,2]
[352346247,1739050255737,-537.55,0.00010955,2]
[352346248,1739050255748,-500.0,0.00010955,2]
[352346249,1739050255757,-500.0,0.00010955,2]
[352346250,1739050255766,-500.0,0.00010955,2]
[352346251,1739050255778,-500.0,0.00010955,2]
[352346252,1739050255788,-817.25,0.00010955,2]
[352346253,1739050255798,-500.0,0.00010955,2]
[352346254,1739050255810,-500.0,0.00010955,2]
[352346255,1739050255820,-745.14,0.00010955,2]
[352346256,1739050255830,-500.0,0.00010955,2]
[352346257,1739050255839,-759.93,0.00010955,2]
[352346258,1739050255849,-500.0,0.00010955,2]
[352346259,1739050255859,-500.0,0.00010955,2]
[352346260,1739050255869,-703.92,0.00010955,2]
[352346261,1739050255878,-613.55,0.00010955,2]
[352346262,1739050255887,-500.0,0.00010955,2]
[352346263,1739050255897,-500.0,0.00010955,2]
[352346264,1739050255907,-500.0,0.00010955,2]
[352346265,1739050255916,-1367.27,0.00010955,2]
[352346266,1739050255926,-500.0,0.00010955,2]
[352346267,1739050255935,-816.57,0.00010955,2]
[352346268,1739050255945,-500.0,0.00010955,2]
[352346269,1739050255956,-470.96,0.00010955,2]
[352346270,1739050255966,-1048.33,0.00010955,2]
[352346271,1739050255976,-418.09901583,0.00010955,2]
[352346272,1739050255986,-500.0,0.00010955,2]
[352346273,1739050255996,-650.44,0.00010955,2]
[352346274,1739050256007,-1186.72,0.00010955,2]
[352346275,1739050256016,-506.78,0.00010955,2]
[352346276,1739050256026,-865.61,0.00010955,2]
[352346277,1739050256036,-500.0,0.00010955,2]
[352346278,1739050256045,-546.88,0.00010955,2]
[352346279,1739050256055,-544.09,0.00010955,2]
[352346280,1739050256065,-869.33,0.00010955,2]
[352346281,1739050256075,-652.37,0.00010955,2]
[352346282,1739050256085,-1567.99,0.00010955,2]
[352346283,1739050256094,-688.47,0.00010955,2]
[352346284,1739050256104,-593.09,0.00010955,2]
[352346285,1739050256114,-685.28,0.00010955,2]
[352346286,1739050256124,-647.24,0.00010955,2]
[352346287,1739050256134,-500.0,0.00010955,2]
[352346288,1739050256144,-500.0,0.00010955,2]
[352346289,1739050256154,-500.0,0.00010955,2]
[352346290,1739050256164,-546.17,0.00010955,2]
[352346291,1739050256174,-500.0,0.00010955,2]
[352346292,1739050256184,-500.0,0.00010955,2]
[352346293,1739050256194,-662.1,0.00010955,2]
[352346294,1739050256204,-1136.03,0.00010955,2]
[352346295,1739050256214,-500.0,0.00010955,2]
[352346296,1739050256224,-954.86,0.00010955,2]
[352346297,1739050256234,-584.73,0.00010955,2]
[352346298,1739050256245,-500.0,0.00010955,2]
[352346299,1739050256255,-797.04,0.00010955,2]
[352346300,1739050256265,-890.35,0.00010955,2]
[352346301,1739050256275,-500.0,0.00010955,2]
[352346302,1739050256285,-835.73,0.00010955,2]
[352346303,1739050256295,-500.0,0.00010955,2]
[352346304,1739050256305,-841.66,0.00010955,2]
[352346305,1739050256314,-1633.27,0.00010955,2]
[352346306,1739050256324,-516.17,0.00010955,2]
[352346307,1739050256335,-637.46,0.00010955,2]
[352346308,1739050256346,-450.448362,0.00010958,2]
[352346309,1739050256356,-430.5103,0.00010958,2]
[352346310,1739050256366,-540.53,0.00010958,2]
[352346311,1739050256376,-500.0,0.00010958,2]
[352346312,1739050256385,-725.14,0.00010958,2]
[352346313,1739050256395,-500.0,0.00010958,2]
[352346314,1739050256404,-743.11,0.00010958,2]
[352346315,1739050256414,-502.24,0.00010958,2]
[352346316,1739050256424,-661.2,0.00010958,2]
[352346317,1739050256434,-500.0,0.00010958,2]
[352346318,1739050256445,-500.0,0.00010958,2]
[352346319,1739050256454,-992.69,0.00010958,2]
[352346320,1739050256464,-538.64,0.00010958,2]
[352346321,1739050256474,-1056.48,0.00010958,2]
[352346322,1739050256484,-500.0,0.00010958,2]
[352346323,1739050256494,-1045.26,0.00010958,2]
[352346324,1739050256504,-500.0,0.00010958,2]
[352346325,1739050256514,-962.11,0.00010958,2]
[352346326,1739050256524,-903.48,0.00010958,2]
[352346327,1739050256534,-1460.39,0.00010958,2]
[352346328,1739050256543,-603.3,0.00010958,2]
[352346329,1739050256552,-899.53,0.00010958,2]
[352346330,1739050256563,-167.594378,0.00010958,2]
[352346331,1739050256572,-808.06,0.00010958,2]
[352346332,1739050256581,-300.0229375,0.00010958,2]
[352346333,1739050256882,-228.3870625,0.00010958,2]
[352346334,1739050256894,-389.35855303,0.00010958,2]
[352346335,1739050256908,-110.64144697,0.00010958,2]
[352346336,1739050256919,-504.57,0.00010958,2]
[352346337,1739050256932,-159.48713743,0.00010958,2]
[352346338,1739050256947,-351.03411824,0.00010958,2]
[352346339,1739050256985,-498.62454691,0.00010136,2]
[352346340,1739050257001,-1.37545309,0.00010136,2]
[352346341,1739050257014,-440.83874433,0.00010958,2]
[352346342,1739050257027,-1150.15,0.00010958,2]
[352346343,1739050257038,-819.97,0.00010958,2]
[352346344,1739050257052,-500.0,0.00010958,2]
[352346345,1739050257064,-500.0,0.00010958,2]
[352346346,1739050257076,-1432.14,0.00010958,2]
[352346347,1739050257090,-957.52,0.00010958,2]
[352346348,1739050257101,-500.0,0.00010958,2]
[352346349,1739050257113,-508.14,0.00010958,2]
[352346350,1739050257126,-549.53,0.00010958,2]
[352346351,1739050257138,-749.69,0.00010958,2]
[352346352,1739050257152,-500.0,0.00010958,2]
[352346353,1739050257164,-500.0,0.00010958,2]
[352346354,1739050257176,-682.67,0.00010958,2]
[352346355,1739050257189,-607.84,0.00010958,2]
[352346356,1739050257199,-500.0,0.00010958,2]
[352346357,1739050257209,-150.0,0.00010959,2]
[352346358,1739050257220,-1002.221,0.00010966,2]
[352346359,1739050257231,-231.754,0.00010966,2]
[352346360,1739050257245,-494.57850964,0.0001097,2]
[352346361,1739050257261,-505.42149036,0.0001097,2]
[352346362,1739050257271,-782.99781256,0.0001097,2]
[352346363,1739050257281,-225.7275349,0.00010973,2]
[352346364,1739050257291,-162.15070795,0.00010973,2]
[352346365,1739050257303,-320.56394293,0.00010973,2]
[352346366,1739050257321,-153.79758188,0.00010973,2]
[352346367,1739050257334,-354.65075592,0.00010973,2]
[352346368,1739050257350,-151.28759874,0.00010973,2]
[352346369,1739050257361,-500.0,0.00010973,2]
[352346370,1739050257372,-424.06325276,0.00010982,2]
[352346371,1739050257383,-570.23,0.00010998,2]
[352346372,1739050257395,-1064.90180151,0.00010999,2]
[352346373,1739050257410,-18065.53095398,0.00010999,2]
[352346374,1739050257423,-79438.20046794,0.00010999,2]
[352346375,1739050257436,-1174.2484198,0.00010999,2]
[352346376,1739050257447,-500.0,0.00010999,2]
[352346377,1739050257458,-500.0,0.00010999,2]
[352346378,1739050257468,-500.0,0.00010999,2]
[352346379,1739050257479,-500.0,0.00010999,2]
[352346380,1739050257490,-500.0,0.00010999,2]
[352346381,1739050257500,-500.0,0.00010999,2]
[352346382,1739050257511,-500.0,0.00010999,2]
[352346383,1739050257522,-500.0,0.00010999,2]
[352346384,1739050257534,-500.0,0.00010999,2]
[352346385,1739050257546,-500.0,0.00010999,2]
[352346386,1739050257556,-500.0,0.00010999,2]
[352346387,1739050257567,-243.01826834,0.00010999,2]
[352346388,1739050257580,-256.98173166,0.00010999,2]
[352346389,1739050257591,-500.0,0.00010999,2]
[352346390,1739050257603,-500.0,0.00010999,2]
[352346391,1739050257617,-500.0,0.00010999,2]
[352346392,1739050257628,-500.0,0.00010999,2]